bitfinex/quotes_ETHUSD_20251012
["timestamp","ask_amount","ask_price","bid_price","bid_amount"]
[1760265539235,0.001,3829.2,3827.5,2.61264936]
[1760265539236,1.92,3828.1,3827.5,2.61264936]
[1760265539534,2.61227405,3828.1,3827.5,2.61264936]
[1760265540502,2.61235192,3828.0,3827.4,0.4509]
[1760265540907,2.61235192,3828.0,3827.4,3.06363349]
[1760265541216,0.1554,3828.1,3826.8,15.28799565]
[1760265541416,0.1554,3828.1,3826.8,17.115094]
[1760265541417,2.61264283,3827.6,3826.8,17.115094]
[1760265541590,0.1554,3827.5,3827.0,2.61299094]
[1760265541796,0.1554,3827.4,3827.0,2.61299094]
[1760265542196,2.61255726,3827.7,3827.0,2.61297323]
[1760265542545,2.61240601,3827.9,3827.2,2.61287595]
[1760265542757,2.76400601,3827.9,3827.2,2.61287595]
[1760265543456,0.1516,3827.9,3827.2,2.61287595]
[1760265543662,2.6123384,3828.0,3827.4,2.61269685]
[1760265543833,2.6123384,3828.0,3827.3,2.61280229]
[1760265544035,2.6123384,3828.0,3827.2,3.06375461]
[1760265544239,2.76400145,3827.9,3827.2,2.61285461]
[1760265544667,2.61247025,3827.8,3827.2,2.61285461]
[1760265544848,2.61247025,3827.8,3827.1,2.61292383]
[1760265545028,0.1516,3827.7,3827.1,2.61292383]
[1760265545361,0.1516,3827.7,3826.9,3.06397998]
[1760265545362,2.61264894,3827.6,3826.8,14.502]
[1760265545659,0.1304,3826.9,3826.8,17.11509753]
[1760265545826,0.1304,3826.9,3826.8,14.502]
[1760265546326,0.1304,3826.9,3826.8,17.11514936]
[1760265546538,0.1304,3826.9,3826.8,14.502]
[1760265546861,2.89508108,3826.9,3826.8,0.002]
[1760265547060,4.81508108,3826.9,3826.8,0.002]
[1760265552585,1.92,3826.9,3826.8,0.002]
[1760265552760,0.1516,3827.9,3826.8,0.4529]
[1760265553075,0.001,3828.4,3826.8,0.002]
[1760265553281,0.1516,3827.8,3826.9,2.61307474]
[1760265553446,2.61254656,3827.7,3826.9,17.11307474]
[1760265553877,4.5323998,3827.9,3826.9,17.11307474]
[1760265553878,2.76420531,3827.6,3826.9,17.11307474]
[1760265554384,2.61270301,3827.5,3826.9,14.5]
[1760265554959,2.61270301,3827.5,3826.9,17.11308088]
[1760265555678,2.76421817,3827.6,3826.9,17.11308088]
[1760265555870,2.76421817,3827.6,3827.0,2.61300916]
[1760265556065,0.1516,3827.6,3826.9,14.5]
[1760265556275,2.61244616,3827.9,3827.2,2.61287057]
[1760265556446,0.1304,3827.2,3827.1,2.61294452]
[1760265556778,2.61240563,3827.9,3827.3,2.61280773]
[1760265556965,2.76470274,3828.4,3827.7,2.61248317]
[1760265557170,2.76470274,3828.4,3827.6,2.61257879]
[1760265557360,0.1526,3828.4,3827.7,2.61252554]
[1760265557952,0.001,3828.4,3827.8,2.61246497]
[1760265558599,0.1304,3827.9,3827.2,4.66325116]
[1760265558884,0.1304,3827.9,3827.8,2.61246669]
[1760265559086,0.1304,3827.9,3827.8,17.11246669]
[1760265559386,0.1304,3827.9,3827.8,17.56336669]
[1760265559594,0.001,3828.4,3828.3,2.61212548]
[1760265559953,0.001,3828.4,3828.3,3.06302548]
[1760265560490,0.001,3828.4,3828.3,3.16779772]
[1760265562166,0.001,3828.4,3828.3,17.66779772]
[1760265562970,0.001,3828.4,3828.3,17.21689772]
[1760265567508,0.001,3828.4,3828.3,17.65999772]
[1760265572509,0.001,3828.4,3828.3,17.66199772]
[1760265572829,0.001,3828.4,3828.3,20.34599772]
[1760265573907,0.001,3828.4,3828.3,20.21559772]
[1760265574237,0.001,3828.4,3828.3,20.34599772]
[1760265576247,1e-08,3829.2,3829.1,3.24517974]
[1760265576399,1e-08,3829.2,3829.1,5.16517974]
[1760265576743,1e-08,3829.2,3829.1,5.60827974]
[1760265576899,1e-08,3829.2,3829.1,5.71299109]
[1760265577101,1e-08,3829.2,3829.1,20.21299109]
[1760265580928,1e-08,3829.2,3829.1,19.57939109]
[1760265581127,1e-08,3829.2,3829.1,20.21299109]
[1760265585973,1e-08,3829.2,3829.1,21.65299109]
[1760265586340,1e-08,3829.2,3829.1,21.78339109]
[1760265587842,1e-08,3829.2,3829.1,20.34339109]
[1760265588043,1e-08,3830.5,3830.4,3.2442934]
[1760265588243,1e-08,3830.5,3830.4,5.1642934]
[1760265588477,1e-08,3830.5,3830.4,5.7357934]
[1760265588682,1e-08,3830.5,3830.4,5.84047077]
[1760265588882,1e-08,3830.5,3830.4,20.34047077]
[1760265594887,1e-08,3830.5,3830.4,20.21007077]
[1760265595070,1e-08,3830.5,3830.4,17.65647077]
[1760265595467,1e-08,3830.5,3830.4,19.57647077]
[1760265599870,1e-08,3830.5,3830.4,20.21007077]
[1760265603211,0.22025655,3830.5,3830.4,20.21007077]
[1760265603713,0.22025655,3830.5,3830.4,17.65647077]
[1760265604080,0.22025655,3830.5,3830.4,19.57647077]
[1760265604417,0.22025655,3830.5,3830.4,17.65647077]
[1760265604723,0.22025655,3830.5,3830.4,19.57647077]
[1760265608346,0.22025655,3830.5,3830.4,19.58947077]
[1760265608843,0.22025655,3830.5,3830.4,17.21537077]
[1760265609044,0.22025655,3830.5,3830.4,17.1126934]
[1760265609250,0.22025655,3830.5,3830.4,17.5667934]
[1760265609547,0.22025655,3830.5,3830.4,14.502]
[1760265609746,0.22025655,3830.5,3830.4,17.1126934]
[1760265611152,0.38205655,3830.5,3830.4,14.502]
[1760265611721,0.22025655,3830.5,3830.4,14.502]
[1760265612613,0.22025655,3830.5,3830.4,17.1126934]
[1760265613944,0.38205655,3830.5,3830.4,14.502]
[1760265614652,0.22025655,3830.5,3830.4,14.502]
[1760265615757,0.38205655,3830.5,3830.4,14.502]
[1760265617372,0.22025655,3830.5,3830.4,14.502]
[1760265617528,0.22025655,3830.5,3830.4,17.1126934]
[1760265617734,0.22025655,3830.5,3830.4,14.502]
[1760265618244,0.22025655,3830.5,3830.4,17.1126934]
[1760265620582,0.38205655,3830.5,3830.4,14.502]
[1760265620961,0.38205655,3830.5,3830.4,0.002]
[1760265621685,2.99268179,3830.5,3830.4,0.002]
[1760265622458,0.38205655,3830.5,3830.4,0.002]
[1760265623294,2.99268179,3830.5,3830.4,0.002]
[1760265624097,0.38205655,3830.5,3830.4,0.002]
[1760265625204,2.99268179,3830.5,3830.4,0.002]
[1760265626501,0.22025655,3830.5,3830.4,0.002]
[1760265626676,2.99268179,3830.5,3830.4,0.002]
[1760265629814,0.38205655,3830.5,3830.4,0.002]
[1760265634597,2.99268179,3830.5,3830.4,0.002]
[1760265638226,0.38205655,3830.5,3830.4,0.002]
[1760265638734,2.99268179,3830.5,3830.4,0.002]
[1760265639658,0.38205655,3830.5,3830.4,0.002]
[1760265641055,0.22025655,3830.5,3830.4,0.002]
[1760265641554,0.38205655,3830.5,3830.4,0.002]
[1760265644055,0.22025655,3830.5,3830.4,3.0809934]
[1760265645863,0.22025655,3830.5,3830.4,17.1126934]
[1760265646938,0.22025655,3830.5,3830.4,17.5809934]
[1760265649126,0.22025655,3830.5,3830.4,3.0809934]
[1760265649667,0.22025655,3830.5,3830.4,17.5809934]
[1760265649966,0.22025655,3830.5,3830.4,17.1126934]
[1760265650634,0.22025655,3830.5,3830.4,14.502]
[1760265650968,0.38205655,3830.5,3830.4,0.002]
[1760265651326,2.99268179,3830.5,3830.4,0.002]
[1760265652604,0.38205655,3830.5,3830.4,0.002]
[1760265656293,2.99268179,3830.5,3830.4,0.002]
[1760265657267,0.38205655,3830.5,3830.4,0.002]
[1760265659286,2.99268179,3830.5,3830.4,0.002]
[1760265661279,0.38205655,3830.5,3830.4,0.002]
[1760265661481,2.99268179,3830.5,3830.4,0.002]
[1760265664288,4.91268179,3830.5,3830.4,0.002]
[1760265664823,5.54628179,3830.5,3830.4,0.002]
[1760265665118,16.41303479,3830.5,3830.4,0.002]
[1760265665994,34.07736179,3830.5,3830.4,0.002]
[1760265666321,18.30437279,3830.5,3830.4,0.002]
[1760265666822,18.09437279,3830.5,3830.4,0.002]
[1760265667323,17.44937279,3830.5,3830.4,0.002]
[1760265667796,5.54628179,3830.5,3830.4,0.002]
[1760265668188,0.38205655,3830.5,3830.4,0.002]
[1760265668391,0.22025655,3830.5,3830.4,0.002]
[1760265668610,0.38205655,3830.5,3830.4,0.002]
[1760265673508,0.22025655,3830.5,3830.4,0.002]
[1760265673709,0.38205655,3830.5,3830.4,0.002]
[1760265675396,4.91268179,3830.5,3830.4,0.002]
[1760265679135,23.72007879,3830.5,3830.4,0.002]
[1760265679340,21.63417879,3830.5,3830.4,0.002]
[1760265680126,35.54628179,3830.5,3830.4,0.002]
[1760265681131,5.54628179,3830.5,3830.4,0.002]
[1760265681302,35.54628179,3830.5,3830.4,0.002]
[1760265682510,34.69675579,3830.5,3830.4,0.002]
[1760265683296,35.54628179,3830.5,3830.4,0.002]
[1760265684114,19.89045779,3830.5,3830.4,0.002]
[1760265684306,26.17335779,3830.5,3830.4,0.002]
[1760265684724,16.75314579,3830.5,3830.4,0.002]
[1760265685332,21.87891579,3830.5,3830.4,0.002]
[1760265686350,18.66531279,3830.5,3830.4,0.002]
[1760265686900,7.57824379,3830.5,3830.4,0.002]
[1760265687118,7.19933479,3830.5,3830.4,0.002]
[1760265687340,9.41119079,3830.5,3830.4,0.002]
[1760265688238,8.53646679,3830.5,3830.4,0.002]
[1760265688414,9.26654879,3830.5,3830.4,0.002]
[1760265689426,10.63713479,3830.5,3830.4,0.002]
[1760265689758,8.20196279,3830.5,3830.4,0.002]
[1760265689962,5.54628179,3830.5,3830.4,0.002]
[1760265692054,4.91268179,3830.5,3830.4,0.002]
[1760265697770,2.14025655,3830.5,3830.4,0.002]
[1760265697925,0.22025655,3830.5,3830.4,0.002]
[1760265700957,0.38205655,3830.5,3830.4,0.002]
[1760265701160,0.22025655,3830.5,3830.4,0.002]
[1760265702469,0.22025655,3830.5,3830.4,2.6126934]
[1760265702668,0.22025655,3830.5,3830.4,0.002]
[1760265703777,0.22025655,3830.5,3830.4,2.6126934]
[1760265704069,0.22025655,3830.5,3830.4,3.0831934]
[1760265704226,0.35065655,3830.5,3830.4,3.0831934]
[1760265704430,0.35065655,3830.5,3830.4,17.5831934]
[1760265707188,0.14310683,3830.5,3830.4,17.5831934]
[1760265708059,0.14410683,3830.5,3830.4,17.5831934]
[1760265709186,0.14410683,3830.5,3830.4,19.5031934]
[1760265724214,0.2154,3831.9,3830.4,19.5031934]
[1760265724215,0.001,3832.2,3832.1,2.60953524]
[1760265724407,0.001,3832.2,3832.1,5.22543524]
[1760265724791,0.001,3832.2,3831.5,0.4632]
[1760265724993,0.001,3832.2,3832.1,17.10953524]
[1760265727408,0.001,3832.2,3832.1,17.57273524]
[1760265728825,0.001,3832.2,3832.1,3.07273524]
[1760265729321,0.001,3832.2,3832.1,17.57273524]
[1760265730226,0.001,3833.0,3832.9,2.60899058]
[1760265730666,0.001,3833.0,3832.9,4.99219058]
[1760265731011,0.001,3833.0,3832.9,20.12579058]
[1760265734758,0.001,3833.0,3832.9,20.25619058]
[1760265735533,0.001,3833.0,3832.9,20.36079021]
[1760265738005,0.001,3833.0,3832.9,20.23039021]
[1760265743071,0.001,3833.4,3832.9,20.23039021]
[1760265743072,1e-08,3833.8,3833.7,3.24204614]
[1760265743229,1e-08,3833.8,3833.7,5.62524614]
[1760265743970,1e-08,3833.8,3833.7,19.59624249]
[1760265744280,1e-08,3834.6,3834.5,2.60790194]
[1760265744572,0.3225,3836.8,3834.9,4.52762992]
[1760265744926,0.3225,3836.8,3834.9,19.47372992]
[1760265745121,1e-08,3835.4,3835.3,2.60735796]
[1760265745323,1e-08,3835.4,3835.3,4.52735796]
[1760265745566,1e-08,3835.4,3835.3,4.97345796]
[1760265745968,1e-08,3835.4,3835.3,19.47345796]
[1760265747955,1e-08,3835.4,3835.3,19.60305796]
[1760265758885,1e-08,3835.4,3835.3,17.10735796]
[1760265759082,1e-08,3835.4,3835.3,17.55345796]
[1760265759909,0.00100001,3835.4,3835.3,17.55345796]
[1760265760111,0.00100001,3835.4,3835.3,14.5]
[1760265760315,0.00100001,3835.4,3835.3,17.10735796]
[1760265761800,0.00100001,3835.4,3835.3,2.60735796]
[1760265762304,0.00100001,3835.4,3835.3,17.10735796]
[1760265766433,0.00100001,3835.4,3835.3,17.53505796]
[1760265769648,0.00100001,3835.4,3835.3,20.08865796]
[1760265770233,0.00100001,3835.4,3835.3,20.21825796]
[1760265777165,0.00100001,3835.4,3835.3,19.58465796]
[1760265777953,0.00100001,3835.4,3835.3,19.58665796]
[1760265780358,0.00100001,3835.4,3835.3,20.22025796]
[1760265792447,0.00100001,3835.4,3835.3,19.58665796]
[1760265793350,0.00100001,3835.4,3835.3,17.53705796]
[1760265796798,0.00100001,3835.4,3835.3,19.58665796]
[1760265800906,0.00100001,3835.4,3835.3,17.10935796]
[1760265803093,0.00100001,3835.4,3835.3,17.54045796]
[1760265803928,0.00100001,3835.4,3835.3,3.04045796]
[1760265804434,0.00100001,3835.4,3835.3,17.54045796]
[1760265807609,0.00100001,3835.4,3835.3,17.10935796]
[1760265808403,0.00100001,3835.4,3835.3,17.56375796]
[1760265810726,0.00100001,3835.4,3835.3,17.10935796]
[1760265813532,0.00100001,3835.4,3835.3,14.502]
[1760265813732,0.56370001,3835.4,3835.3,17.10935796]
[1760265813939,0.56370001,3835.4,3835.3,14.502]
[1760265819448,0.00100001,3835.4,3835.3,17.56375796]
[1760265820350,0.00100001,3835.4,3835.3,17.10935796]
[1760265821343,0.00100001,3835.4,3835.3,17.56375796]
[1760265821747,0.00100001,3835.4,3835.3,3.06375796]
[1760265822113,0.00100001,3835.4,3835.3,17.56375796]
[1760265828961,0.00100001,3835.4,3835.3,17.10935796]
[1760265829562,0.00100001,3835.4,3835.3,17.55405796]
[1760265835959,0.00100001,3835.4,3835.3,19.47405796]
[1760265836148,0.00100001,3835.4,3835.3,19.60365796]
[1760265836548,0.00100001,3835.4,3835.3,19.70821521]
[1760265848775,0.00100001,3835.4,3835.3,19.60365796]
[1760265851017,0.00100001,3835.4,3835.3,17.55405796]
[1760265853033,0.42730001,3835.4,3835.3,17.10935796]
[1760265853239,0.42730001,3835.4,3835.3,14.502]
[1760265853537,0.42730001,3835.4,3835.3,0.002]
[1760265855806,0.42730001,3835.4,3835.3,2.60935796]
[1760265856538,0.00100001,3835.4,3835.3,2.60935796]
[1760265857802,0.00100001,3835.4,3835.3,17.10935796]
[1760265860133,0.30000001,3835.4,3835.3,17.10935796]
[1760265861699,0.30000001,3835.4,3835.3,0.002]
[1760265866431,3.54088999,3835.4,3835.3,0.002]
[1760265867059,0.93360001,3835.4,3835.3,0.002]
[1760265867223,0.30000001,3835.4,3835.3,0.002]
[1760265872072,2.90728999,3835.4,3835.3,0.002]
[1760265872369,0.30000001,3835.4,3835.3,0.002]
[1760265877284,23.78223199,3835.4,3835.3,0.002]
[1760265877595,19.79932399,3835.4,3835.3,0.002]
[1760265877964,19.90396275,3835.4,3835.3,0.002]
[1760265878372,35.56552875,3835.4,3835.3,0.002]
[1760265879307,29.66720592,3835.0,3834.9,1e-08]
[1760265879465,34.08041392,3835.0,3834.9,1e-08]
[1760265879663,34.37941392,3835.0,3834.9,1e-08]
[1760265880472,35.46016192,3835.0,3834.9,1e-08]
[1760265880798,35.86930017,3835.0,3834.9,1e-08]
[1760265881030,35.46016192,3835.0,3834.9,1e-08]
[1760265882609,36.24513337,3835.0,3834.9,1e-08]
[1760265883586,36.14301837,3835.0,3834.9,1e-08]
[1760265884499,31.28662637,3835.0,3834.9,1e-08]
[1760265884687,27.74370637,3835.0,3834.9,1e-08]
[1760265885506,30.59705437,3835.0,3834.9,1e-08]
[1760265886508,9.61631037,3835.0,3834.9,1e-08]
[1760265886707,10.24991037,3835.0,3834.9,1e-08]
[1760265894333,36.24513337,3835.0,3834.9,1e-08]
[1760265895230,6.24513337,3835.0,3834.9,1e-08]
[1760265895437,36.24513337,3835.0,3834.9,1e-08]
[1760265897627,32.57976437,3835.0,3834.9,1e-08]
[1760265898540,31.07363637,3835.0,3834.9,1e-08]
[1760265899311,17.89959737,3835.0,3834.9,1e-08]
[1760265900320,25.90672537,3835.0,3834.9,1e-08]
[1760265900527,22.84422537,3835.0,3834.9,1e-08]
[1760265900749,23.14864549,3835.0,3834.9,1e-08]
[1760265901124,4.52892251,3833.0,3832.9,0.002]
[1760265901539,4.82602251,3833.0,3832.9,0.002]
[1760265902141,5.45962251,3833.0,3832.9,0.002]
[1760265903012,5.56430399,3833.0,3832.9,0.002]
[1760265904321,2.2171,3833.0,3832.9,0.002]
[1760265904522,4.82602251,3833.0,3832.9,0.002]
[1760265905248,5.45962251,3833.0,3832.9,0.002]
[1760265908465,2.8507,3833.0,3832.9,0.002]
[1760265908661,5.45962251,3833.0,3832.9,0.002]
[1760265911530,14.42611751,3833.0,3832.9,0.002]
[1760265911745,12.43132663,3833.0,3832.9,0.002]
[1760265912547,9.14512563,3833.0,3832.9,0.002]
[1760265913536,6.24480763,3833.0,3832.9,0.002]
[1760265916357,2.2171,3833.0,3832.9,0.002]
[1760265917776,4.82602251,3833.0,3832.9,0.002]
[1760265918098,5.45962251,3833.0,3832.9,0.002]
[1760265918887,12.52884951,3833.0,3832.9,0.002]
[1760265919065,12.14890786,3833.0,3832.9,0.002]
[1760265920290,11.54522186,3833.0,3832.9,0.002]
[1760265920689,23.94042386,3833.0,3832.9,0.002]
[1760265920892,14.33176586,3833.0,3832.9,0.002]
[1760265921050,10.90986486,3833.0,3832.9,0.002]
[1760265921254,9.92887886,3833.0,3832.9,0.002]
[1760265921447,8.32929286,3833.0,3832.9,0.002]
[1760265921683,5.56431386,3833.0,3832.9,0.002]
[1760265921890,7.57673886,3833.0,3832.9,0.002]
[1760265922057,5.56431386,3833.0,3832.9,0.002]
[1760265923098,2.95539135,3833.0,3832.9,0.002]
[1760265923272,5.56431386,3833.0,3832.9,0.002]
[1760265926693,20.83935186,3833.0,3832.9,0.002]
[1760265927194,14.60032586,3833.0,3832.9,0.002]
[1760265927563,12.11932586,3833.0,3832.9,0.002]
[1760265931463,5.56431386,3833.0,3832.9,0.002]
[1760265935788,1.92,3833.0,3832.9,0.002]
[1760265936702,2.2153,3833.0,3832.9,0.002]
[1760265936910,1.92,3833.0,3832.9,0.002]
[1760265937211,0.4067,3833.4,3832.9,0.002]
[1760265937427,0.1893,3833.9,3832.9,0.002]
[1760265937608,2.1096,3833.6,3832.9,0.002]
[1760265938122,0.1896,3833.6,3832.9,2.6109808]
[1760265938283,2.1393,3833.7,3832.9,2.6109808]
[1760265938485,0.1896,3833.6,3832.9,2.6109808]
[1760265938720,0.1896,3833.6,3832.9,0.002]
[1760265940624,0.1896,3833.6,3832.9,2.61098706]
[1760265940783,0.1896,3833.6,3832.9,3.08298706]
[1760265940984,0.1896,3833.6,3833.0,14.5]
[1760265941527,0.40918661,3833.8,3833.0,17.10889286]
[1760265941681,0.40918661,3833.8,3833.1,3.08082408]
[1760265941888,0.40918661,3833.8,3833.2,0.472]
[1760265942087,0.40918661,3833.8,3833.3,2.60865233]
[1760265942286,0.001,3834.1,3833.4,17.58062972]
[1760265942493,0.001,3834.1,3833.5,2.60858109]
[1760265943426,0.001,3834.1,3833.5,3.08058109]
[1760265945433,0.001,3834.1,3833.5,0.472]
[1760265947937,0.001,3834.1,3833.4,2.60862649]
[1760265947938,0.1304,3833.5,3833.4,2.60862649]
[1760265948712,0.1304,3833.5,3833.4,3.04332649]
[1760265949843,0.1304,3833.5,3832.9,0.002]
[1760265950007,0.1893,3833.7,3833.3,2.60871299]
[1760265950209,0.1912,3833.7,3833.4,2.60865009]
[1760265950436,1.921,3834.1,3833.3,2.60870862]
[1760265950735,0.1912,3833.9,3833.4,2.60864842]
[1760265950940,0.001,3834.1,3833.4,2.60864842]
[1760265951243,0.1912,3834.0,3833.4,2.60864842]
[1760265952245,0.1912,3834.0,3832.9,0.002]
[1760265952246,0.1912,3834.0,3833.5,2.60857282]
[1760265952662,0.1912,3834.0,3833.6,14.5]
[1760265953455,0.1912,3833.9,3833.6,14.5]
[1760265953851,0.001,3834.1,3833.6,14.5]
[1760265954163,0.1922,3834.1,3833.6,14.5]
[1760265954736,0.001,3834.1,3833.6,14.5]
[1760265954932,0.1912,3834.0,3833.6,14.5]
[1760265955943,0.001,3834.1,3833.6,14.5]
[1760265956193,0.001,3834.1,3833.6,14.9582]
[1760265956370,0.001,3834.1,3833.7,0.4582]
[1760265957161,0.1912,3834.0,3833.7,14.5]
[1760265957638,0.001,3834.1,3833.7,14.9582]
[1760265957838,0.001,3834.1,3833.7,14.5]
[1760265958173,0.1912,3834.0,3833.7,14.5]
[1760265961069,0.1304,3833.7,3833.5,2.61055478]
[1760265961245,0.001,3834.1,3833.6,2.60850116]
[1760265961440,0.001,3834.1,3833.7,14.5]
[1760265961645,0.1922,3834.1,3833.7,14.5]
[1760265961858,0.001,3834.1,3833.7,14.5]
[1760265962056,0.1912,3834.0,3833.7,14.5]
[1760265962378,0.001,3834.1,3833.8,0.4582]
[1760265964082,0.1304,3833.8,3833.7,14.5]
[1760265964881,0.1304,3833.8,3833.7,0.4582]
[1760265965288,0.1304,3833.8,3833.6,2.60849914]
[1760265965470,0.001,3834.1,3833.7,0.4582]
[1760265966290,0.1304,3833.7,3833.6,17.10849914]
[1760265966994,0.1304,3833.7,3833.6,17.56669914]
[1760265967605,0.1304,3833.7,3833.6,14.9582]
[1760265968068,0.1304,3833.7,3833.6,17.56671419]
[1760265969769,0.1304,3833.7,3833.6,14.5]
[1760265970670,0.1304,3833.7,3833.6,17.10851419]
[1760265971064,0.1304,3833.7,3833.6,17.56671419]
[1760265972306,0.1304,3833.7,3833.6,17.10851419]
[1760265972804,0.1304,3833.7,3833.6,14.5]
[1760265973468,0.1304,3833.7,3833.6,17.10851419]
[1760265973806,0.1304,3833.7,3833.6,14.5]
[1760265976719,0.1304,3833.7,3833.5,0.002]
[1760265976720,0.3216,3833.7,3833.5,0.002]
[1760265976935,5.16211419,3833.6,3833.5,0.002]
[1760265977411,5.35351419,3833.6,3833.5,0.002]
[1760265977985,5.45818471,3833.6,3833.5,0.002]
[1760265978627,19.19462671,3833.6,3833.5,0.002]
[1760265979493,35.45818471,3833.6,3833.5,0.002]
[1760265979698,22.72993571,3833.6,3833.5,0.002]
[1760265980113,23.75667335,3833.6,3833.5,0.002]
[1760265980584,23.75667335,3833.6,3833.1,1e-08]
[1760265980585,33.24238639,3833.2,3833.1,1e-08]
[1760265980785,25.91465939,3833.2,3833.1,1e-08]
[1760265981098,6.78378639,3833.2,3833.1,1e-08]
[1760265981623,8.85078639,3833.2,3833.1,1e-08]
[1760265982919,2.60900725,3832.9,3832.0,2.58115067]
[1760265983226,0.1914,3832.8,3831.9,2.61165981]
[1760265983384,0.1914,3832.7,3831.9,2.61165981]
[1760265983582,0.1914,3832.6,3832.0,14.5]
[1760265983815,0.1914,3832.5,3832.0,14.5]
[1760265983983,0.1914,3832.4,3832.0,14.5]
[1760265984183,0.1914,3832.3,3832.0,14.5]
[1760265984398,1.92,3832.7,3832.0,14.5]
[1760265984596,2.60926722,3832.5,3832.0,14.5]
[1760265984802,0.1914,3832.4,3832.0,14.5]
[1760265985286,2.60926722,3832.5,3832.0,14.5]
[1760265985490,0.1914,3832.3,3831.9,0.002]
[1760265985993,0.1914,3832.2,3831.9,0.002]
[1760265986414,2.80087227,3832.2,3831.9,0.002]
[1760265986726,1.92,3832.1,3831.9,0.002]
[1760265987094,0.1914,3832.0,3831.9,0.002]
[1760265987826,4.72100334,3832.0,3831.9,0.002]
[1760265988832,18.00355234,3832.0,3831.9,0.002]
[1760265989033,17.14555434,3832.0,3831.9,0.002]
[1760265989206,14.87867834,3832.0,3831.9,0.002]
[1760265989734,25.31294134,3832.0,3831.9,0.002]
[1760265991035,22.16104234,3832.0,3831.9,0.002]
[1760265991244,13.16904934,3832.0,3831.9,0.002]
[1760265991444,11.13855834,3832.0,3831.9,0.002]
[1760265992102,26.52570134,3832.0,3831.9,0.002]
[1760265992513,26.26516134,3832.0,3831.9,0.002]
[1760265993155,17.46308934,3832.0,3831.9,0.002]
[1760265994163,18.22528734,3832.0,3831.9,0.002]
[1760265995136,20.10656134,3832.0,3831.9,0.002]
[1760265995313,5.35460334,3832.0,3831.9,0.002]
[1760265995510,11.47055634,3832.0,3831.9,0.002]
[1760265996913,10.45081634,3832.0,3831.9,0.002]
[1760265998282,2.60903568,3832.9,3831.9,0.002]
[1760265998283,0.1914,3832.5,3831.9,0.002]
[1760265998448,2.60934196,3832.4,3831.9,0.002]
[1760265998646,2.80068744,3832.5,3831.9,0.002]
[1760265998854,0.19503956,3832.3,3831.9,0.002]
[1760265999339,0.1914,3832.2,3831.9,0.002]
[1760266000340,2.6130535,3832.3,3831.9,0.002]
[1760266000541,0.1914,3832.2,3831.9,0.002]
[1760266006776,0.00363956,3832.3,3832.2,2.60946714]
[1760266007072,0.13403956,3832.3,3832.2,3.06766714]
[1760266010170,0.13403956,3832.3,3832.2,17.56766714]
[1760266011993,0.13403956,3832.3,3832.2,19.48766714]
[1760266013494,0.13403956,3832.3,3832.2,16.42]
[1760266013883,0.13403956,3832.3,3832.2,19.02946714]
[1760266015299,0.13403956,3832.3,3832.2,19.49316714]
[1760266016200,0.13403956,3832.3,3832.2,17.57316714]
[1760266020162,0.00363956,3832.3,3832.2,17.57316714]
[1760266027954,1e-08,3832.3,3832.2,17.70356714]
[1760266028154,1e-08,3832.3,3832.2,20.25716714]
[1760266029217,0.001,3833.2,3832.2,15.0941]
[1760266029432,0.001,3833.2,3832.8,2.60899642]
[1760266029945,0.1789,3833.1,3832.9,14.5]
[1760266030106,0.001,3833.2,3832.9,14.5]
[1760266030302,0.1789,3833.1,3832.9,14.5]
[1760266030544,0.1789,3833.0,3832.9,14.5]
[1760266032822,0.1789,3833.0,3832.2,0.4637]
[1760266033019,0.1789,3832.9,3832.2,0.4637]
[1760266033564,0.1789,3832.9,3832.4,2.60933096]
[1760266034050,0.1789,3832.9,3832.5,2.60925325]
[1760266034254,0.1789,3832.9,3832.6,14.5]
[1760266035656,2.60994519,3833.0,3832.6,14.5]
[1760266035953,0.001,3833.0,3832.6,17.10918854]
[1760266036120,0.1799,3833.0,3832.7,2.60912374]
[1760266036646,0.1799,3833.0,3832.6,17.10916786]
[1760266037245,0.001,3833.0,3832.6,14.5]
[1760266037624,0.1789,3832.9,3832.6,14.5]
[1760266037852,0.1789,3832.8,3832.6,14.5]
[1760266038032,0.001,3833.0,3832.6,14.5]
[1760266038453,0.001,3833.0,3832.6,14.9637]
[1760266038636,0.001,3833.0,3832.6,14.5]
[1760266038958,0.6336,3832.8,3832.1,0.002]
[1760266039166,3.2427948,3832.6,3832.1,0.002]
[1760266039369,0.6336,3832.6,3832.1,0.002]
[1760266039526,2.60927589,3832.5,3832.1,0.002]
[1760266039723,2.78817589,3832.5,3832.1,0.002]
[1760266039973,0.1789,3832.4,3832.1,0.002]
[1760266040467,0.1789,3832.3,3832.1,0.002]
[1760266040856,0.1789,3832.2,3832.1,0.002]
[1760266041057,3.42196714,3832.2,3832.1,0.002]
[1760266041229,5.34196714,3832.2,3832.1,0.002]
[1760266041429,2.7325,3832.2,3832.1,0.002]
[1760266041632,5.34196714,3832.2,3832.1,0.002]
[1760266042658,20.65151914,3832.2,3832.1,0.002]
[1760266042986,10.90258614,3832.2,3832.1,0.002]
[1760266043860,15.84896414,3832.2,3832.1,0.002]
[1760266044190,8.28557915,3832.2,3832.1,0.002]
[1760266045007,2.50827201,3832.2,3832.1,0.002]
[1760266046088,5.11773915,3832.2,3832.1,0.002]
[1760266046494,2.50827201,3832.2,3832.1,0.002]
[1760266046700,5.11773915,3832.2,3832.1,0.002]
[1760266047322,2.50827201,3832.2,3832.1,0.002]
[1760266047907,1.92,3832.1,3831.6,2.60986825]
[1760266048268,0.1789,3832.1,3831.6,2.60986825]
[1760266048973,0.1789,3832.1,3831.7,14.5]
[1760266049711,0.40937201,3832.2,3831.8,0.4413]
[1760266049911,0.40937201,3832.2,3832.1,2.83663524]
[1760266050208,0.001,3833.0,3832.9,2.60899058]
[1760266050415,0.001,3833.0,3832.8,2.60901702]
[1760266050569,0.001,3833.0,3832.3,0.4413]